[Event "*** Titled Tuesday Blitz"]
[Site "Chess.com"]
[Date "2020.05.05"]
[Round "2"]
[White "stanyga"]
[Black "woodhy"]
[Result "0-1"]
[WhiteElo "2685"]
[BlackElo "2397"]
[TimeControl "180+1"]
[EndTime "10:18:55 PDT"]
[Termination "woodhy won on time"]

1. e4 {[%clk 0:03:00.9]} 1... e6 {[%clk 0:02:58.3]} 2. d4 {[%clk 0:02:59.8]}
2... d5 {[%clk 0:02:59.2]} 3. e5 {[%clk 0:03:00.2]} 3... c5 {[%clk 0:02:57.7]}
4. c3 {[%clk 0:03:00.7]} 4... Nc6 {[%clk 0:02:58]} 5. Nf3 {[%clk 0:03:01.1]}
5... Qb6 {[%clk 0:02:57.4]} 6. a3 {[%clk 0:03:01.5]} 6... c4 {[%clk 0:02:54.4]}
7. Nbd2 {[%clk 0:02:59.5]} 7... Bd7 {[%clk 0:02:54.5]} 8. Be2 {[%clk 0:02:58.5]}
8... Nge7 {[%clk 0:02:53.7]} 9. O-O {[%clk 0:02:52.3]} 9... Na5 {[%clk
0:02:53.4]} 10. Re1 {[%clk 0:02:48.1]} 10... Nec6 {[%clk 0:02:51.6]} 11. Rb1
{[%clk 0:02:44.5]} 11... Be7 {[%clk 0:02:48.1]} 12. Qc2 {[%clk 0:02:44.3]} 12...
Nb3 {[%clk 0:02:36.4]} 13. Nxb3 {[%clk 0:02:43.6]} 13... cxb3 {[%clk 0:02:37.1]}
14. Qd1 {[%clk 0:02:38.6]} 14... Na5 {[%clk 0:02:37.1]} 15. Bf4 {[%clk
0:02:33.6]} 15... Bb5 {[%clk 0:02:34.8]} 16. Nd2 {[%clk 0:02:26.5]} 16... Bxe2
{[%clk 0:02:33.5]} 17. Qxe2 {[%clk 0:02:27.4]} 17... Rc8 {[%clk 0:02:32.8]} 18.
Qg4 {[%clk 0:02:24.6]} 18... g6 {[%clk 0:02:28]} 19. Re3 {[%clk 0:02:05]} 19...
h5 {[%clk 0:02:25.3]} 20. Qd1 {[%clk 0:01:59.3]} 20... g5 {[%clk 0:02:21.6]} 21.
Rh3 {[%clk 0:01:38.9]} 21... gxf4 {[%clk 0:02:18.7]} 22. Rxh5 {[%clk 0:01:39.2]}
22... Kd7 {[%clk 0:02:17.6]} 23. Rxh8 {[%clk 0:01:31.5]} 23... Rxh8 {[%clk
0:02:18.5]} 24. Qg4 {[%clk 0:01:31.6]} 24... Qd8 {[%clk 0:01:35.6]} 25. Qxf4
{[%clk 0:01:30]} 25... Qg8 {[%clk 0:01:27.2]} 26. Nf3 {[%clk 0:00:44.2]} 26...
Qg6 {[%clk 0:01:16.8]} 27. Re1 {[%clk 0:00:38.6]} 27... Nc4 {[%clk 0:01:16.2]}
28. Qc1 {[%clk 0:00:22.9]} 28... Rg8 {[%clk 0:00:54.5]} 29. g3 {[%clk
0:00:21.5]} 29... Qd3 {[%clk 0:00:49]} 30. Kg2 {[%clk 0:00:20.6]} 30... a5
{[%clk 0:00:42]} 31. a4 {[%clk 0:00:19.7]} 31... Rg4 {[%clk 0:00:14.6]} 32. h4
{[%clk 0:00:16.4]} 32... Re4 {[%clk 0:00:13.9]} 33. h5 {[%clk 0:00:14.6]} 33...
Rxe1 {[%clk 0:00:09.1]} 34. Nxe1 {[%clk 0:00:15.5]} 34... Qe4+ {[%clk
0:00:08.9]} 35. Nf3 {[%clk 0:00:14.7]} 35... Bf8 {[%clk 0:00:05.4]} 36. h6
{[%clk 0:00:13.3]} 36... Nb6 {[%clk 0:00:05.5]} 37. Qd1 {[%clk 0:00:10.5]} 37...
Qc2 {[%clk 0:00:02.9]} 38. Qh1 {[%clk 0:00:07.5]} 38... Qh7 {[%clk 0:00:01.6]}
39. Ng5 {[%clk 0:00:05.6]} 39... Qxh6 {[%clk 0:00:01.7]} 0-1

[Event "*** Titled Tuesday Blitz"]
[Site "Chess.com"]
[Date "2020.05.05"]
[Round "2"]
[White "aa175"]
[Black "talaicito"]
[Result "1/2-1/2"]
[WhiteElo "2412"]
[BlackElo "2189"]
[TimeControl "180+1"]
[EndTime "10:18:55 PDT"]
[Termination "Game drawn by stalemate"]

1. d4 {[%clk 0:03:00.9]} 1... e6 {[%clk 0:03:00.1]} 2. Nf3 {[%clk 0:03:00]} 2...
f5 {[%clk 0:03:00.5]} 3. Bf4 {[%clk 0:02:57.1]} 3... Nf6 {[%clk 0:03:00.8]} 4.
e3 {[%clk 0:02:57.5]} 4... g6 {[%clk 0:03:00.8]} 5. Bd3 {[%clk 0:02:52.3]} 5...
Bg7 {[%clk 0:03:01.2]} 6. Nbd2 {[%clk 0:02:50.9]} 6... O-O {[%clk 0:03:01.6]} 7.
h3 {[%clk 0:02:50.3]} 7... d6 {[%clk 0:03:01.5]} 8. g4 {[%clk 0:02:50.5]} 8...
Nc6 {[%clk 0:02:57.9]} 9. gxf5 {[%clk 0:02:48.1]} 9... exf5 {[%clk 0:02:57.2]}
10. h4 {[%clk 0:02:44.1]} 10... Nh5 {[%clk 0:02:55.1]} 11. Bg5 {[%clk
0:02:26.3]} 11... Qe8 {[%clk 0:02:54.7]} 12. Qe2 {[%clk 0:02:22.4]} 12... f4
{[%clk 0:02:36.1]} 13. c3 {[%clk 0:02:13.1]} 13... fxe3 {[%clk 0:02:32.5]} 14.
Bxe3 {[%clk 0:02:12.2]} 14... Bg4 {[%clk 0:01:55.6]} 15. Rg1 {[%clk 0:02:05.1]}
15... Qd7 {[%clk 0:01:38.3]} 16. Bc4+ {[%clk 0:01:23.1]} 16... d5 {[%clk
0:01:33]} 17. Bxd5+ {[%clk 0:01:21.7]} 17... Qxd5 {[%clk 0:01:13.5]} 18. Rxg4
{[%clk 0:01:21.4]} 18... Rae8 {[%clk 0:01:14]} 19. O-O-O {[%clk 0:00:55.1]}
19... Qxa2 {[%clk 0:01:12.3]} 20. Ne5 {[%clk 0:00:55.4]} 20... Qa1+ {[%clk
0:00:41]} 21. Nb1 {[%clk 0:00:47.8]} 21... Bxe5 {[%clk 0:00:37.1]} 22. dxe5
{[%clk 0:00:46.6]} 22... Nxe5 {[%clk 0:00:37.2]} 23. Rg5 {[%clk 0:00:37.3]}
23... Ng7 {[%clk 0:00:20]} 24. h5 {[%clk 0:00:34.9]} 24... Nf3 {[%clk
0:00:16.5]} 25. Qc4+ {[%clk 0:00:31.6]} 25... Kh8 {[%clk 0:00:15.8]} 26. hxg6
{[%clk 0:00:30.4]} 26... Nxg5 {[%clk 0:00:15.4]} 27. Bxg5 {[%clk 0:00:27.9]}
27... Rxf2 {[%clk 0:00:14.9]} 28. Qb5 {[%clk 0:00:17.8]} 28... c6 {[%clk
0:00:13.1]} 29. Qxb7 {[%clk 0:00:15.1]} 29... hxg6 {[%clk 0:00:13]} 30. Rh1+
{[%clk 0:00:13.4]} 30... Nh5 {[%clk 0:00:13.1]} 31. Qb3 {[%clk 0:00:08]} 31...
c5 {[%clk 0:00:12.2]} 32. c4 {[%clk 0:00:06.6]} 32... a5 {[%clk 0:00:11.2]} 33.
Qc3+ {[%clk 0:00:06.3]} 33... Kg8 {[%clk 0:00:10.5]} 34. Bh6 {[%clk 0:00:05.1]}
34... Re7 {[%clk 0:00:07.7]} 35. Be3 {[%clk 0:00:04.5]} 35... Rf3 {[%clk
0:00:07.1]} 36. Re1 {[%clk 0:00:03.1]} 36... Nf4 {[%clk 0:00:05.6]} 37. Qc2
{[%clk 0:00:02.4]} 37... Rfxe3 {[%clk 0:00:04.4]} 38. Rxe3 {[%clk 0:00:01.4]}
38... Rxe3 {[%clk 0:00:05]} 39. Qd2 {[%clk 0:00:01.5]} 39... Nd3+ {[%clk
0:00:04.4]} 40. Kc2 {[%clk 0:00:01.5]} 40... Qxb2+ {[%clk 0:00:05]} 41. Kd1
{[%clk 0:00:01.3]} 41... Re1+ {[%clk 0:00:04.7]} 42. Qxe1 {[%clk 0:00:01.1]}
42... Qxb1+ {[%clk 0:00:05.3]} 43. Kd2 {[%clk 0:00:01.4]} 43... Qxe1+ {[%clk
0:00:06]} 44. Kc2 {[%clk 0:00:01.7]} 44... Qb4 {[%clk 0:00:06.4]} 45. Kd1 {[%clk
0:00:01.8]} 45... Qxc4 {[%clk 0:00:06.3]} 46. Ke2 {[%clk 0:00:02.2]} 46... Ne5+
{[%clk 0:00:06.1]} 47. Ke3 {[%clk 0:00:02.7]} 47... Qd4+ {[%clk 0:00:06.2]} 48.
Ke2 {[%clk 0:00:02.7]} 48... g5 {[%clk 0:00:06.6]} 49. Kf1 {[%clk 0:00:02.8]}
49... g4 {[%clk 0:00:07.5]} 50. Kg2 {[%clk 0:00:03.5]} 50... Qe3 {[%clk
0:00:07.8]} 51. Kf1 {[%clk 0:00:03.7]} 51... Qf3+ {[%clk 0:00:08.5]} 52. Kg1
{[%clk 0:00:03.4]} 52... g3 {[%clk 0:00:08.4]} 1/2-1/2

[Event "*** Titled Tuesday Blitz"]
[Site "Chess.com"]
[Date "2020.05.05"]
[Round "2"]
[White "CzechmVIII"]
[Black "TheFireChess"]
[Result "1/2-1/2"]
[WhiteElo "2232"]
[BlackElo "2448"]
[TimeControl "180+1"]
[EndTime "10:18:56 PDT"]
[Termination "Game drawn by repetition"]

1. e4 {[%clk 0:03:00.9]} 1... c6 {[%clk 0:02:58.1]} 2. d4 {[%clk 0:02:59.3]}
2... d5 {[%clk 0:02:59]} 3. e5 {[%clk 0:02:59.5]} 3... c5 {[%clk 0:02:58.9]} 4.
c4 {[%clk 0:02:59.5]} 4... cxd4 {[%clk 0:02:54.6]} 5. Nf3 {[%clk 0:02:59.4]}
5... Nc6 {[%clk 0:02:53.9]} 6. Nxd4 {[%clk 0:02:59.3]} 6... e6 {[%clk
0:02:53.3]} 7. Nc3 {[%clk 0:02:47.7]} 7... Bb4 {[%clk 0:02:52.3]} 8. Nxc6 {[%clk
0:02:45.7]} 8... bxc6 {[%clk 0:02:52.1]} 9. Qg4 {[%clk 0:02:45.6]} 9... Bf8
{[%clk 0:02:48.7]} 10. Bd3 {[%clk 0:02:34.4]} 10... h5 {[%clk 0:02:47.1]} 11.
Qe2 {[%clk 0:02:33.8]} 11... Bb4 {[%clk 0:02:45.8]} 12. O-O {[%clk 0:02:31.4]}
12... Ne7 {[%clk 0:02:43.2]} 13. Bg5 {[%clk 0:02:29.4]} 13... Qa5 {[%clk
0:02:32.4]} 14. Bxe7 {[%clk 0:02:20.5]} 14... Bxe7 {[%clk 0:02:33.3]} 15. cxd5
{[%clk 0:02:20.7]} 15... cxd5 {[%clk 0:02:22.8]} 16. Bb5+ {[%clk 0:02:19.7]}
16... Bd7 {[%clk 0:02:20.9]} 17. Bxd7+ {[%clk 0:02:19.3]} 17... Kxd7 {[%clk
0:02:21.8]} 18. Rfd1 {[%clk 0:02:14.8]} 18... g6 {[%clk 0:02:12.5]} 19. Qf3
{[%clk 0:02:13.9]} 19... Ke8 {[%clk 0:02:11.8]} 20. Nxd5 {[%clk 0:01:47.2]}
20... exd5 {[%clk 0:02:11.3]} 21. Rxd5 {[%clk 0:01:47.3]} 21... Qc7 {[%clk
0:02:11.8]} 22. Rd3 {[%clk 0:01:18.8]} 22... Rd8 {[%clk 0:02:04]} 23. Rc3 {[%clk
0:01:18.7]} 23... Qd7 {[%clk 0:02:01.3]} 24. Rac1 {[%clk 0:01:10.8]} 24... Qg4
{[%clk 0:01:40.6]} 25. Qc6+ {[%clk 0:01:02.6]} 25... Kf8 {[%clk 0:01:38.5]} 26.
h3 {[%clk 0:01:00.4]} 26... Qd7 {[%clk 0:01:27]} 27. Qf3 {[%clk 0:00:57]} 27...
Qd5 {[%clk 0:01:21.9]} 28. Qe3 {[%clk 0:00:49.2]} 28... Kg7 {[%clk 0:01:15.8]}
29. Qxa7 {[%clk 0:00:44]} 29... Rhe8 {[%clk 0:00:44.6]} 30. Qe3 {[%clk
0:00:26.6]} 30... Bb4 {[%clk 0:00:36]} 31. Rc7 {[%clk 0:00:20.5]} 31... Rxe5
{[%clk 0:00:35.4]} 32. Qf4 {[%clk 0:00:13.1]} 32... Bd2 {[%clk 0:00:34.3]} 33.
Rxf7+ {[%clk 0:00:07.6]} 33... Kg8 {[%clk 0:00:25.4]} 34. Qf6 {[%clk 0:00:07.3]}
34... Qxf7 {[%clk 0:00:08.5]} 35. Qxd8+ {[%clk 0:00:07.4]} 35... Re8 {[%clk
0:00:08.7]} 36. Qxd2 {[%clk 0:00:08]} 36... Qxa2 {[%clk 0:00:09.3]} 37. Rd1
{[%clk 0:00:07.5]} 37... Rb8 {[%clk 0:00:07.9]} 38. Qc3 {[%clk 0:00:06.1]} 38...
Qxb2 {[%clk 0:00:07.4]} 39. Qxb2 {[%clk 0:00:06.4]} 39... Rxb2 {[%clk
0:00:08.3]} 40. Rd7 {[%clk 0:00:06.5]} 40... Kf8 {[%clk 0:00:08.4]} 41. Kh2
{[%clk 0:00:06.8]} 41... Ra2 {[%clk 0:00:08.8]} 42. Kg3 {[%clk 0:00:07.1]} 42...
Rb2 {[%clk 0:00:09.2]} 43. f3 {[%clk 0:00:07.6]} 43... Rb4 {[%clk 0:00:08.9]}
44. Kh2 {[%clk 0:00:07.8]} 44... Ra4 {[%clk 0:00:09.3]} 45. Rc7 {[%clk
0:00:08.1]} 45... Rb4 {[%clk 0:00:09.5]} 46. Rd7 {[%clk 0:00:08.4]} 46... Ra4
{[%clk 0:00:09.9]} 47. Rb7 {[%clk 0:00:08.5]} 47... Rc4 {[%clk 0:00:09.5]} 48.
Ra7 {[%clk 0:00:08.7]} 48... Rb4 {[%clk 0:00:09.7]} 49. Rc7 {[%clk 0:00:09.1]}
49... Ra4 {[%clk 0:00:09.7]} 50. Rb7 {[%clk 0:00:09.3]} 50... Rc4 {[%clk
0:00:09.4]} 51. Ra7 {[%clk 0:00:09.5]} 51... Rb4 {[%clk 0:00:09.6]} 52. Rc7
{[%clk 0:00:09.7]} 52... Ra4 {[%clk 0:00:09.7]} 53. Rb7 {[%clk 0:00:08.8]}
1/2-1/2

[Event "*** Titled Tuesday Blitz"]
[Site "Chess.com"]
[Date "2020.05.05"]
[Round "2"]
[White "SiddharthGMJagadeesh"]
[Black "ClockworkKubrick"]
[Result "1-0"]
[WhiteElo "2406"]
[BlackElo "2156"]
[TimeControl "180+1"]
[EndTime "10:18:56 PDT"]
[Termination "SiddharthGMJagadeesh won by resignation"]

1. Nf3 {[%clk 0:03:00.9]} 1... Nf6 {[%clk 0:02:55.5]} 2. c4 {[%clk 0:03:00.9]}
2... d6 {[%clk 0:02:54.6]} 3. d4 {[%clk 0:03:00.3]} 3... g6 {[%clk 0:02:54.9]}
4. g3 {[%clk 0:02:59]} 4... Bg7 {[%clk 0:02:54.9]} 5. Bg2 {[%clk 0:02:59.3]}
5... O-O {[%clk 0:02:55.5]} 6. O-O {[%clk 0:02:59.6]} 6... Nbd7 {[%clk
0:02:55.9]} 7. Qc2 {[%clk 0:02:57]} 7... c6 {[%clk 0:02:55.8]} 8. Rd1 {[%clk
0:02:56.6]} 8... Qc7 {[%clk 0:02:55.2]} 9. Nc3 {[%clk 0:02:56.7]} 9... e5 {[%clk
0:02:55.2]} 10. dxe5 {[%clk 0:02:56.5]} 10... dxe5 {[%clk 0:02:55.2]} 11. Ng5
{[%clk 0:02:56.8]} 11... Nc5 {[%clk 0:02:52.2]} 12. b3 {[%clk 0:02:43.6]} 12...
Be6 {[%clk 0:02:51.2]} 13. Ba3 {[%clk 0:02:42.9]} 13... b6 {[%clk 0:02:50.3]}
14. Bxc5 {[%clk 0:02:29.2]} 14... bxc5 {[%clk 0:02:50.2]} 15. Nxe6 {[%clk
0:02:29.7]} 15... fxe6 {[%clk 0:02:51.1]} 16. Ne4 {[%clk 0:02:28.3]} 16... Nxe4
{[%clk 0:02:46]} 17. Qxe4 {[%clk 0:02:29.2]} 17... Rac8 {[%clk 0:02:44]} 18. Rd3
{[%clk 0:02:26.8]} 18... Rfd8 {[%clk 0:02:40.7]} 19. Rad1 {[%clk 0:02:26.1]}
19... Rxd3 {[%clk 0:02:40.4]} 20. Rxd3 {[%clk 0:02:27]} 20... Bf6 {[%clk
0:02:33.3]} 21. e3 {[%clk 0:02:12.2]} 21... Kf7 {[%clk 0:02:31.5]} 22. Qf3
{[%clk 0:02:09.4]} 22... Ke7 {[%clk 0:02:29.1]} 23. h4 {[%clk 0:02:03.8]} 23...
Kf7 {[%clk 0:02:24]} 24. h5 {[%clk 0:01:56.3]} 24... g5 {[%clk 0:02:20.4]} 25.
Qe4 {[%clk 0:01:53.8]} 25... Kg7 {[%clk 0:02:14.5]} 26. Bh3 {[%clk 0:01:46.3]}
26... Qe7 {[%clk 0:02:13.8]} 27. Qf3 {[%clk 0:01:40.1]} 27... Kh6 {[%clk
0:01:58.5]} 28. Bg4 {[%clk 0:01:35.3]} 28... Kg7 {[%clk 0:01:57.2]} 29. Kg2
{[%clk 0:01:34.7]} 29... Kh6 {[%clk 0:01:56.9]} 30. Qe4 {[%clk 0:01:19.6]} 30...
Kg7 {[%clk 0:01:51.7]} 31. Bd1 {[%clk 0:01:05.5]} 31... Kh6 {[%clk 0:01:49.8]}
32. Bc2 {[%clk 0:01:05.3]} 32... Rc7 {[%clk 0:01:44.3]} 33. Rd2 {[%clk
0:00:53.8]} 33... Qf7 {[%clk 0:01:43.6]} 34. Qg4 {[%clk 0:00:51.4]} 34... Be7
{[%clk 0:01:18.1]} 35. Be4 {[%clk 0:00:35.9]} 35... Bf8 {[%clk 0:01:16.8]} 36.
Bf3 {[%clk 0:00:35.5]} 36... Be7 {[%clk 0:01:08.2]} 37. Qe4 {[%clk 0:00:33.4]}
37... Qf5 {[%clk 0:01:01.4]} 38. g4 {[%clk 0:00:27.4]} 38... Qxe4 {[%clk
0:01:00.2]} 39. Bxe4 {[%clk 0:00:28.3]} 39... Kg7 {[%clk 0:00:58.4]} 40. f3
{[%clk 0:00:25.8]} 40... h6 {[%clk 0:00:54.9]} 41. Bg6 {[%clk 0:00:24.8]} 41...
Kf6 {[%clk 0:00:53.9]} 42. Kf1 {[%clk 0:00:24]} 42... Kg7 {[%clk 0:00:53.9]} 43.
Ke2 {[%clk 0:00:24.1]} 43... Kf6 {[%clk 0:00:54.3]} 44. Rd3 {[%clk 0:00:22.4]}
44... Kg7 {[%clk 0:00:54]} 45. Kd1 {[%clk 0:00:22.5]} 45... Kf6 {[%clk
0:00:54.2]} 46. Kc2 {[%clk 0:00:23]} 46... Kg7 {[%clk 0:00:54.4]} 47. Kb2 {[%clk
0:00:23.5]} 47... Kf6 {[%clk 0:00:54.6]} 48. Ka3 {[%clk 0:00:24]} 48... Kg7
{[%clk 0:00:54.7]} 49. Ka4 {[%clk 0:00:24.5]} 49... Kf6 {[%clk 0:00:54.9]} 50.
Ka5 {[%clk 0:00:25.1]} 50... Kg7 {[%clk 0:00:54.4]} 51. Ka6 {[%clk 0:00:25.4]}
51... Kf6 {[%clk 0:00:54.6]} 52. Be8 {[%clk 0:00:25]} 52... Kg7 {[%clk
0:00:52.8]} 53. Rd7 {[%clk 0:00:23.2]} 53... Rxd7 {[%clk 0:00:50.3]} 54. Bxd7
{[%clk 0:00:24.1]} 54... e4 {[%clk 0:00:48.1]} 55. fxe4 {[%clk 0:00:22.7]} 55...
Kf6 {[%clk 0:00:48.5]} 56. Kxa7 {[%clk 0:00:20.2]} 56... Ke5 {[%clk 0:00:44.4]}
57. Bxc6 {[%clk 0:00:20.1]} 57... Kd6 {[%clk 0:00:45.1]} 58. Kb7 {[%clk
0:00:20.2]} 58... Bf6 {[%clk 0:00:44.7]} 59. a4 {[%clk 0:00:20]} 59... Bc3
{[%clk 0:00:44.7]} 60. Kb6 {[%clk 0:00:19.8]} 60... Bd2 {[%clk 0:00:41.5]} 61.
a5 {[%clk 0:00:19.7]} 61... Bxa5+ {[%clk 0:00:38.5]} 62. Kxa5 {[%clk 0:00:20.6]}
62... Kxc6 {[%clk 0:00:39.1]} 63. e5 {[%clk 0:00:20.7]} 63... Kc7 {[%clk
0:00:31.8]} 64. Kb5 {[%clk 0:00:20.1]} 1-0

[Event "*** Titled Tuesday Blitz"]
[Site "Chess.com"]
[Date "2020.05.05"]
[Round "2"]
[White "Hanging_pointer"]
[Black "Zhuu96"]
[Result "1/2-1/2"]
[WhiteElo "2578"]
[BlackElo "2931"]
[TimeControl "180+1"]
[EndTime "10:18:57 PDT"]
[Termination "Game drawn - insufficient material"]

1. d4 {[%clk 0:03:00.9]} 1... Nf6 {[%clk 0:02:59.8]} 2. c4 {[%clk 0:02:57.7]}
2... e6 {[%clk 0:02:59.9]} 3. Nf3 {[%clk 0:02:56.2]} 3... d5 {[%clk 0:02:57.1]}
4. g3 {[%clk 0:02:56.1]} 4... c6 {[%clk 0:02:52.8]} 5. Bg2 {[%clk 0:02:56.5]}
5... Be7 {[%clk 0:02:53.2]} 6. O-O {[%clk 0:02:56.2]} 6... O-O {[%clk
0:02:53.3]} 7. Nbd2 {[%clk 0:02:56.7]} 7... b6 {[%clk 0:02:53.1]} 8. Qc2 {[%clk
0:02:50.4]} 8... Bb7 {[%clk 0:02:53]} 9. e4 {[%clk 0:02:48.2]} 9... Na6 {[%clk
0:02:52.3]} 10. Re1 {[%clk 0:02:44.2]} 10... Nb4 {[%clk 0:02:45]} 11. Qb3 {[%clk
0:02:37.2]} 11... dxe4 {[%clk 0:02:42.9]} 12. Nxe4 {[%clk 0:02:33]} 12... Nxe4
{[%clk 0:02:42.4]} 13. Rxe4 {[%clk 0:02:31.3]} 13... c5 {[%clk 0:02:42.1]} 14.
Rg4 {[%clk 0:02:24.7]} 14... f5 {[%clk 0:02:39.4]} 15. Rf4 {[%clk 0:02:22.9]}
15... Bd6 {[%clk 0:02:22.7]} 16. dxc5 {[%clk 0:02:17.2]} 16... Bxf4 {[%clk
0:02:21.5]} 17. Bxf4 {[%clk 0:02:18.1]} 17... bxc5 {[%clk 0:02:13.9]} 18. Rd1
{[%clk 0:02:17.3]} 18... Qb6 {[%clk 0:01:57.1]} 19. a3 {[%clk 0:02:16.8]} 19...
Nd5 {[%clk 0:01:49.6]} 20. Qxb6 {[%clk 0:02:11.1]} 20... Nxb6 {[%clk 0:01:49]}
21. Ne5 {[%clk 0:02:11.2]} 21... Bxg2 {[%clk 0:01:47.5]} 22. Kxg2 {[%clk
0:02:12.1]} 22... Rfd8 {[%clk 0:01:37.6]} 23. Re1 {[%clk 0:02:11]} 23... h6
{[%clk 0:01:34.3]} 24. h4 {[%clk 0:02:08.5]} 24... Rac8 {[%clk 0:01:27.5]} 25.
Re2 {[%clk 0:02:07.1]} 25... Rd4 {[%clk 0:01:23.5]} 26. b3 {[%clk 0:02:02.7]}
26... Re4 {[%clk 0:01:23.6]} 27. Rd2 {[%clk 0:01:57]} 27... Rd4 {[%clk 0:01:13]}
28. Re2 {[%clk 0:01:56.5]} 28... a5 {[%clk 0:01:10]} 29. Nf3 {[%clk 0:01:54.3]}
29... Re4 {[%clk 0:01:09.4]} 30. Rd2 {[%clk 0:01:50.3]} 30... a4 {[%clk
0:00:58.7]} 31. Rd6 {[%clk 0:01:50.4]} 31... Rb8 {[%clk 0:00:58.5]} 32. Rd3
{[%clk 0:01:48.6]} 32... Rb7 {[%clk 0:00:56.2]} 33. Nd2 {[%clk 0:01:46.1]} 33...
Rd4 {[%clk 0:00:51.1]} 34. Rxd4 {[%clk 0:01:43.9]} 34... cxd4 {[%clk 0:00:51.4]}
35. b4 {[%clk 0:01:44]} 35... Kf7 {[%clk 0:00:43.1]} 36. Be5 {[%clk 0:01:43.9]}
36... Rd7 {[%clk 0:00:39.4]} 37. h5 {[%clk 0:01:41.4]} 37... Nc8 {[%clk
0:00:35.9]} 38. f3 {[%clk 0:01:39.8]} 38... Nd6 {[%clk 0:00:30.1]} 39. Kf2
{[%clk 0:01:38.3]} 39... Ke8 {[%clk 0:00:29.3]} 40. c5 {[%clk 0:01:36.9]} 40...
Nb5 {[%clk 0:00:28.5]} 41. Nc4 {[%clk 0:01:36.6]} 41... d3 {[%clk 0:00:28.6]}
42. Bd6 {[%clk 0:01:34.4]} 42... Nxd6 {[%clk 0:00:13.2]} 43. cxd6 {[%clk
0:01:35.3]} 43... e5 {[%clk 0:00:12.5]} 44. Ke3 {[%clk 0:01:33]} 44... e4 {[%clk
0:00:12.3]} 45. fxe4 {[%clk 0:01:33.4]} 45... fxe4 {[%clk 0:00:12.6]} 46. Kxe4
{[%clk 0:01:33.5]} 46... d2 {[%clk 0:00:12.4]} 47. Nxd2 {[%clk 0:01:30.5]} 47...
Rxd6 {[%clk 0:00:12.7]} 48. Nc4 {[%clk 0:01:31.2]} 48... Rd1 {[%clk 0:00:12.9]}
49. Nb6 {[%clk 0:01:29.2]} 49... Ra1 {[%clk 0:00:11.5]} 50. Nc4 {[%clk
0:01:29.7]} 50... Kd7 {[%clk 0:00:11.3]} 51. Kf5 {[%clk 0:01:28.1]} 51... Rg1
{[%clk 0:00:10]} 52. g4 {[%clk 0:01:26.6]} 52... Kc6 {[%clk 0:00:10.3]} 53. Ke6
{[%clk 0:01:25.2]} 53... Kb5 {[%clk 0:00:09.1]} 54. Nd6+ {[%clk 0:01:23]} 54...
Ka6 {[%clk 0:00:09.4]} 55. Ne4 {[%clk 0:01:19.9]} 55... Rxg4 {[%clk 0:00:09.3]}
56. Nc3 {[%clk 0:01:18.2]} 56... Rg3 {[%clk 0:00:08.4]} 57. Nxa4 {[%clk
0:01:18.3]} 57... Rxa3 {[%clk 0:00:08.4]} 58. Kf7 {[%clk 0:01:09.9]} 58... Rxa4
{[%clk 0:00:07.8]} 59. Kxg7 {[%clk 0:01:09.7]} 59... Rxb4 {[%clk 0:00:07.3]} 60.
Kxh6 {[%clk 0:01:10.1]} 60... Kb6 {[%clk 0:00:07.3]} 61. Kg7 {[%clk 0:01:08.8]}
61... Rg4+ {[%clk 0:00:07.4]} 62. Kf7 {[%clk 0:01:07.4]} 62... Rf4+ {[%clk
0:00:07.8]} 63. Kg7 {[%clk 0:01:07.2]} 63... Rg4+ {[%clk 0:00:08.1]} 64. Kf7
{[%clk 0:01:07.2]} 64... Kc6 {[%clk 0:00:08.5]} 65. h6 {[%clk 0:01:07.2]} 65...
Rf4+ {[%clk 0:00:08.9]} 66. Kg7 {[%clk 0:01:07]} 66... Kd7 {[%clk 0:00:08.8]}
67. h7 {[%clk 0:01:07.5]} 67... Rg4+ {[%clk 0:00:08.6]} 68. Kf7 {[%clk
0:01:07.7]} 68... Rh4 {[%clk 0:00:09.1]} 69. Kg7 {[%clk 0:01:08.3]} 69... Rxh7+
{[%clk 0:00:09.4]} 70. Kxh7 {[%clk 0:01:08.3]} 1/2-1/2

[Event "*** Titled Tuesday Blitz"]
[Site "Chess.com"]
[Date "2020.05.05"]
[Round "2"]
[White "SamuelGhimpu2003"]
[Black "Pomegranate988"]
[Result "1-0"]
[WhiteElo "2684"]
[BlackElo "2471"]
[TimeControl "180+1"]
[EndTime "10:18:57 PDT"]
[Termination "SamuelGhimpu2003 won by resignation"]

1. e4 {[%clk 0:03:00.9]} 1... c6 {[%clk 0:02:59.3]} 2. d4 {[%clk 0:02:58.7]}
2... d5 {[%clk 0:03:00.2]} 3. e5 {[%clk 0:02:59.1]} 3... Bf5 {[%clk 0:02:59.6]}
4. Nd2 {[%clk 0:02:58.1]} 4... h5 {[%clk 0:02:55.1]} 5. Nb3 {[%clk 0:02:57.2]}
5... e6 {[%clk 0:02:54.3]} 6. Nf3 {[%clk 0:02:52.3]} 6... Be7 {[%clk 0:02:35.4]}
7. Be2 {[%clk 0:02:50.1]} 7... g5 {[%clk 0:02:28.2]} 8. h3 {[%clk 0:02:45.4]}
8... Nh6 {[%clk 0:02:25.2]} 9. Nh2 {[%clk 0:02:35.3]} 9... h4 {[%clk 0:02:18.3]}
10. Ng4 {[%clk 0:02:27.6]} 10... Nd7 {[%clk 0:02:13.4]} 11. Nxh6 {[%clk
0:02:23]} 11... Rxh6 {[%clk 0:02:12.8]} 12. Be3 {[%clk 0:02:23.9]} 12... Qc7
{[%clk 0:02:06.6]} 13. Qd2 {[%clk 0:02:16]} 13... Rg6 {[%clk 0:02:05.3]} 14. Rc1
{[%clk 0:02:11]} 14... O-O-O {[%clk 0:01:59.3]} 15. a4 {[%clk 0:01:48.2]} 15...
f6 {[%clk 0:01:47]} 16. exf6 {[%clk 0:01:45.8]} 16... Nxf6 {[%clk 0:01:45.9]}
17. Bd3 {[%clk 0:01:25.8]} 17... Ne4 {[%clk 0:01:36.5]} 18. Qe2 {[%clk
0:01:21.4]} 18... Rf8 {[%clk 0:01:26.1]} 19. Bxe4 {[%clk 0:01:15.1]} 19... Bxe4
{[%clk 0:01:25.7]} 20. f3 {[%clk 0:01:15.4]} 20... Bf5 {[%clk 0:01:23.7]} 21.
O-O {[%clk 0:01:11.2]} 21... Bd6 {[%clk 0:01:18.3]} 22. Rfe1 {[%clk 0:01:07.5]}
22... Bg3 {[%clk 0:01:12.7]} 23. Bf2 {[%clk 0:01:06.9]} 23... Bf4 {[%clk
0:01:12.7]} 24. Rcd1 {[%clk 0:01:04.8]} 24... Rgf6 {[%clk 0:01:06.1]} 25. Nc1
{[%clk 0:01:00.3]} 25... Kb8 {[%clk 0:00:34]} 26. Nd3 {[%clk 0:00:59.3]} 26...
Bxd3 {[%clk 0:00:34.1]} 27. Rxd3 {[%clk 0:01:00.2]} 27... Re8 {[%clk 0:00:32.9]}
28. Be3 {[%clk 0:00:56.3]} 28... a6 {[%clk 0:00:18.6]} 29. Bxf4 {[%clk
0:00:52.4]} 29... gxf4 {[%clk 0:00:18.8]} 30. Qf2 {[%clk 0:00:52.7]} 30... Qh7
{[%clk 0:00:14.3]} 31. Rd2 {[%clk 0:00:51.3]} 31... Kc7 {[%clk 0:00:13.8]} 32.
Rde2 {[%clk 0:00:51]} 32... Kd7 {[%clk 0:00:13.8]} 33. Re5 {[%clk 0:00:44.6]}
33... Rf5 {[%clk 0:00:12.6]} 34. Rxf5 {[%clk 0:00:31.8]} 34... Qxf5 {[%clk
0:00:13.5]} 35. c3 {[%clk 0:00:32.7]} 35... Qf6 {[%clk 0:00:12.6]} 36. Re5
{[%clk 0:00:31.5]} 36... Re7 {[%clk 0:00:12.2]} 37. a5 {[%clk 0:00:29.7]} 37...
Rg7 {[%clk 0:00:11.4]} 38. Rh5 {[%clk 0:00:28.1]} 38... Qg6 {[%clk 0:00:10.1]}
39. Rxh4 {[%clk 0:00:25.6]} 39... Qb1+ {[%clk 0:00:09.6]} 40. Kh2 {[%clk
0:00:25.3]} 40... Qa2 {[%clk 0:00:09.9]} 41. Rxf4 {[%clk 0:00:22.9]} 41... Qxa5
{[%clk 0:00:10.1]} 42. Rf6 {[%clk 0:00:18.2]} 42... Qb5 {[%clk 0:00:09.3]} 43.
f4 {[%clk 0:00:17]} 43... Qd3 {[%clk 0:00:08.3]} 44. h4 {[%clk 0:00:07]} 44...
Rg3 {[%clk 0:00:05.7]} 45. Qxg3 {[%clk 0:00:05.9]} 1-0